bitfinex/quotes_SOLUSD_20250917
["timestamp","ask_amount","ask_price","bid_price","bid_amount"]
[1758071372712,1.35498829,236.79,236.78,32.45]
[1758071372917,1.35498829,236.79,236.78,0.03]
[1758071373118,1.35498829,236.79,236.78,32.45]
[1758071373778,1.35498829,236.79,236.78,0.03]
[1758071374239,1.63931143,236.79,236.78,0.03]
[1758071374740,5.86246274,236.79,236.78,0.03]
[1758071379161,7.55440277,236.79,236.78,0.03]
[1758071382965,6.25941449,236.79,236.78,0.03]
[1758071383163,7.55440277,236.79,236.78,0.03]
[1758071389174,7.49440277,236.79,236.78,0.03]
[1758071394459,7.55440277,236.79,236.78,0.03]
[1758071395060,7.49440277,236.79,236.78,0.03]
[1758071395360,21.08999678,236.79,236.78,0.03]
[1758071401490,39.87991715,236.75,236.73,1e-08]
[1758071401775,17.93447931,236.74,236.73,1e-08]
[1758071402161,19.62699206,236.74,236.73,1e-08]
[1758071402750,23.85103531,236.74,236.73,1e-08]
[1758071402951,26.057868,236.74,236.73,1e-08]
[1758071403677,28.31160422,236.72,236.71,1e-08]
[1758071404680,32.53600435,236.72,236.71,1e-08]
[1758071404881,34.22858872,236.72,236.71,1e-08]
[1758071405482,34.22858872,236.72,236.71,0.66000001]
[1758071406286,5.9169845,236.72,236.71,0.66000001]
[1758071406465,12.76694082,236.74,236.71,0.66000001]
[1758071406466,2.02728108,236.74,236.71,0.66000001]
[1758071406870,0.28432314,236.74,236.71,0.66000001]
[1758071407550,6.25120724,236.75,236.71,0.66000001]
[1758071407757,0.28432314,236.74,236.71,0.66000001]
[1758071407955,4.50842446,236.74,236.71,0.66000001]
[1758071408768,6.53570554,236.74,236.71,0.66000001]
[1758071409558,2.02728108,236.75,236.71,0.66000001]
[1758071410258,6.25119951,236.75,236.71,0.66000001]
[1758071412188,2.02728108,236.74,236.71,0.66000001]
[1758071412487,4.22422168,236.73,236.71,0.66000001]
[1758071413683,2.02728108,236.74,236.71,0.66000001]
[1758071413982,6.25129626,236.75,236.71,0.66000001]
[1758071414881,6.25135466,236.74,236.71,0.66000001]
[1758071417483,2.02728108,236.73,236.71,0.66000001]
[1758071419597,2.02728108,236.74,236.71,0.66000001]
[1758071420172,6.25133351,236.74,236.71,0.66000001]
[1758071423493,131.7,236.76,236.71,0.66000001]
[1758071423678,137.95097522,236.76,236.71,0.66000001]
[1758071423877,133.72728108,236.76,236.71,4.88451562]
[1758071424288,133.72728108,236.76,236.72,0.66]
[1758071425692,131.7,236.76,236.72,0.66]
[1758071425897,133.72728108,236.76,236.72,0.66]
[1758071426798,131.7,236.76,236.72,4.8843383]
[1758071426977,2.02728108,236.78,236.72,4.8843383]
[1758071427302,2.02728108,236.78,236.73,0.67]
[1758071428900,2.02728109,236.79,236.74,4.22404325]
[1758071429099,1e-08,236.79,236.75,0.67]
[1758071429301,1e-08,236.79,236.76,32.42]
[1758071429486,1e-08,236.79,236.75,0.67]
[1758071429684,1e-08,236.79,236.77,32.42]
[1758071430188,1e-08,236.79,236.78,0.67]
[1758071430904,1e-08,236.79,236.78,4.89332967]
[1758071434007,1e-08,236.79,236.78,0.67]
[1758071435796,1e-08,236.79,236.78,4.89332967]
[1758071437307,1e-08,236.79,236.78,0.67]
[1758071439987,1e-08,236.79,236.78,33.09]
[1758071444714,1e-08,236.79,236.78,0.67]
[1758071444919,1e-08,236.79,236.78,33.07]
[1758071445800,1e-08,236.79,236.78,37.29332967]
[1758071453916,1e-08,236.79,236.78,39.32061075]
[1758071456627,1e-08,236.79,236.78,52.91620476]
[1758071461939,0.06,236.82,236.81,26.0]
[1758071462230,0.06,236.82,236.81,28.02728108]
[1758071462430,0.06,236.82,236.8,2.02728108]
[1758071462630,0.06,236.82,236.81,32.4]
[1758071463524,4.34261671,236.82,236.81,32.4]
[1758071463732,16.19512314,236.82,236.72,2.0159656]
[1758071463921,1.2959656,236.79,236.73,32.4]
[1758071464232,1.2959656,236.8,236.73,32.4]
[1758071464439,0.06,236.79,236.73,33.6959656]
[1758071464806,1.3559656,236.78,236.71,1.29596561]
[1758071465128,0.06,236.77,236.72,32.4]
[1758071465732,4.2835181,236.77,236.72,32.4]
[1758071466526,4.2835181,236.77,236.72,33.12]
[1758071467018,4.2835181,236.77,236.72,0.72]
[1758071467220,5.5794837,236.77,236.72,0.72]
[1758071467427,5.5794837,236.77,236.71,1e-08]
[1758071467615,5.5794837,236.77,236.72,32.4]
[1758071467815,5.5794837,236.77,236.71,1e-08]
[1758071468115,5.5794837,236.77,236.71,0.72000001]
[1758071468532,1.2959656,236.76,236.71,1e-08]
[1758071468716,1.2959656,236.74,236.72,20.86]
[1758071469037,1.3559656,236.74,236.71,1e-08]
[1758071469222,1.2959656,236.74,236.73,32.4]
[1758071469426,1.3559656,236.74,236.71,1e-08]
[1758071469621,0.06,236.74,236.72,32.4]
[1758071469835,5.5194837,236.77,236.72,32.4]
[1758071470046,4.2235181,236.77,236.73,0.72]
[1758071470753,0.06,236.79,236.74,0.72]
[1758071471052,0.06,236.79,236.76,1.2959656]
[1758071471379,0.06,236.79,236.77,33.12]
[1758071474547,0.06,236.79,236.78,0.72]
[1758071478055,0.06,236.79,236.78,2.0159656]
[1758071478431,0.06,236.79,236.78,0.72]
[1758071478625,0.06,236.79,236.77,32.4]
[1758071479125,0.06,236.79,236.77,33.12]
[1758071480040,0.06,236.79,236.78,0.72]
[1758071480849,0.06,236.79,236.77,32.4]
[1758071481051,1.4159656,236.79,236.73,4.22413478]
[1758071481252,1.4159656,236.79,236.74,32.4]
[1758071481452,1.3559656,236.79,236.75,0.72]
[1758071482162,1.2959656,236.77,236.72,0.72]
[1758071482330,1.2959656,236.77,236.73,32.4]
[1758071482745,1.2959656,236.78,236.74,0.72]
[1758071483058,1.2959656,236.78,236.75,0.72]
[1758071483242,1.2959656,236.78,236.76,32.4]
[1758071483545,1.2959656,236.78,236.77,0.03]
[1758071483744,0.06,236.79,236.77,0.75]
[1758071485748,0.06,236.79,236.77,0.03]
[1758071486147,1.3559656,236.79,236.78,32.4]
[1758071486649,5.57912049,236.79,236.77,0.03]
[1758071486848,4.28315489,236.79,236.78,32.4]
[1758071488029,5.57912049,236.79,236.78,32.4]
[1758071488526,0.06,236.79,236.78,32.4]
[1758071488843,0.06,236.79,236.78,33.07]
[1758071490253,0.06,236.79,236.78,0.67]
[1758071490454,0.06,236.79,236.78,33.07]
[1758071492744,0.06,236.79,236.78,38.58929527]
[1758071495050,0.06,236.79,236.78,33.07]
[1758071495748,0.06,236.79,236.78,37.29332967]
[1758071496754,0.06,236.79,236.78,38.58929527]
[1758071501372,0.06,236.79,236.78,37.29332967]
[1758071501559,0.06,236.79,236.78,38.61929527]
[1758071502559,0.06,236.79,236.78,37.94929527]
[1758071502759,0.06,236.79,236.78,37.32332967]
[1758071503052,0.06,236.79,236.78,4.92332967]
[1758071503354,0.06,236.79,236.78,38.61929527]
[1758071506754,0.06,236.79,236.78,6.21929527]
[1758071506960,0.06,236.79,236.78,38.61929527]
[1758071507359,0.06,236.79,236.78,0.03]
[1758071507553,0.06,236.79,236.78,32.43]
[1758071509251,0.06,236.79,236.78,33.1]
[1758071509447,0.06,236.79,236.78,0.7]
[1758071509737,0.06,236.79,236.78,32.43]
[1758071511765,0.06,236.79,236.78,33.1]
[1758071512558,0.06,236.79,236.78,32.43]
[1758071517269,0.06,236.79,236.78,33.09]
[1758071522453,0.06,236.79,236.78,32.43]
[1758071522656,5.92344005,236.79,236.78,0.03]
[1758071523883,6.65324144,236.79,236.78,0.03]
[1758071527460,26.0,236.79,236.78,0.03]
[1758071527659,30.87285741,236.79,236.78,0.03]
[1758071528362,4.87285741,236.79,236.78,0.03]
[1758071528562,2.02576699,236.79,236.78,0.03]
[1758071528766,6.2489183,236.79,236.78,0.03]
[1758071529361,6.39107987,236.79,236.78,0.03]
[1758071529684,6.53324144,236.79,236.78,0.03]
[1758071531563,26.0,236.76,236.75,0.03]
[1758071531763,31.15252256,236.76,236.75,0.03]
[1758071531963,32.84482049,236.76,236.75,0.03]
[1758071533272,30.00238806,236.76,236.75,0.03]
[1758071534974,37.06560111,236.76,236.75,0.03]
[1758071535163,34.22607449,236.76,236.75,0.03]
[1758071547009,34.22607449,236.76,236.75,0.71]
[1758071547208,34.22607449,236.76,236.75,0.03]
[1758071547509,34.22607449,236.76,236.75,0.71]
[1758071548114,34.22607449,236.76,236.75,0.03]
[1758071553010,34.22607449,236.76,236.75,0.71]
[1758071553184,34.22607449,236.76,236.75,0.03]
[1758071553618,52.68497477,236.76,236.73,0.03]
[1758071553819,52.68497477,236.76,236.72,0.03]
[1758071553820,26.28432314,236.73,236.72,0.03]
[1758071554108,26.28432314,236.73,236.66,0.71]
[1758071554109,13.87991715,236.71,236.66,0.03]
[1758071554308,51.14322342,236.71,236.67,0.68]
[1758071554506,51.14322342,236.71,236.68,0.71]
[1758071554808,52.83602267,236.71,236.68,0.71]
[1758071555013,24.66060126,236.71,236.68,0.71]
[1758071555611,24.66060126,236.71,236.68,0.03]
[1758071558105,24.66060126,236.71,236.68,0.71]
[1758071558412,24.66060126,236.71,236.68,0.03]
[1758071558992,26.86766272,236.71,236.68,0.03]
[1758071559813,24.84189573,236.71,236.68,0.03]
[1758071559991,8.0853064,236.71,236.7,0.71]
[1758071560194,7.94314483,236.71,236.7,0.71]
[1758071562211,8.22746797,236.71,236.7,0.71]
[1758071562414,8.22746797,236.71,236.7,0.03]
[1758071564414,8.22746797,236.71,236.7,0.71]
[1758071565008,8.22746797,236.71,236.7,0.03]
[1758071565206,8.22746797,236.71,236.7,0.71]
[1758071566608,8.22746797,236.71,236.7,0.03]
[1758071567520,8.22746797,236.71,236.7,0.71]
[1758071572619,6.20170098,236.71,236.7,0.71]
[1758071572923,8.22746797,236.71,236.7,0.71]
[1758071573104,11.06473409,236.71,236.7,0.71]
[1758071574208,1.69279925,236.71,236.7,0.71]
[1758071574414,2.02576699,236.71,236.7,0.71]
[1758071574614,2.02576699,236.72,236.7,0.71]
[1758071575510,6.25019829,236.72,236.7,0.71]
[1758071577533,2.02576699,236.71,236.7,0.71]
[1758071578542,4.2244313,236.72,236.7,0.71]
[1758071578744,2.02576699,236.71,236.7,0.03]
[1758071579235,2.02576699,236.71,236.7,0.7]
[1758071579842,6.25034558,236.71,236.7,0.7]
[1758071582641,2.02576699,236.71,236.7,0.7]
[1758071583140,6.25034558,236.71,236.7,0.7]
[1758071584824,6.53466872,236.71,236.7,0.03]
[1758071585233,8.22718147,236.71,236.7,0.03]
[1758071585715,7.49871913,236.71,236.7,0.03]
[1758071586341,7.55871913,236.71,236.7,0.03]
[1758071586842,7.55871913,236.71,236.7,0.7]
[1758071587247,7.55871913,236.71,236.7,0.03]
[1758071587626,7.55871913,236.71,236.7,0.7]
[1758071589433,7.55871913,236.71,236.7,0.03]
[1758071592549,21.15431314,236.71,236.7,0.03]
[1758071592853,23.99585941,236.71,236.7,0.03]
[1758071597041,22.69855476,236.71,236.7,0.03]
[1758071597247,23.99585941,236.71,236.7,0.7]
[1758071598455,23.99585941,236.71,236.7,0.03]
[1758071601753,23.99585941,236.71,236.7,0.7]
[1758071602858,23.99585941,236.71,236.7,0.03]
[1758071604343,0.28432314,236.69,236.68,0.03]
[1758071604543,4.42317406,236.69,236.68,0.03]
[1758071605254,6.11597332,236.69,236.68,0.73]
[1758071605755,10.34090888,236.69,236.68,0.73]
[1758071608256,10.34090888,236.69,236.68,0.03]
[1758071608751,23.93650289,236.69,236.68,0.03]
[1758071610458,10.34090888,236.69,236.68,0.73]
[1758071619168,10.34090888,236.69,236.68,0.03]
[1758071619366,10.34090888,236.69,236.68,0.73]
[1758071630667,10.05658574,236.69,236.68,0.73]
[1758071630965,8.36378648,236.69,236.68,0.73]
[1758071633665,2.84154627,236.69,236.68,0.73]
[1758071633869,27.35730465,236.7,236.68,0.73]
[1758071635259,0.06,236.7,236.68,0.73]
[1758071636288,0.06,236.7,236.68,4.95510456]
[1758071636671,0.06,236.7,236.69,0.68]
[1758071645013,0.06,236.7,236.69,4.90493556]
[1758071647909,0.06,236.7,236.69,37.28493556]
[1758071651112,0.06,236.7,236.69,4.90493556]
[1758071651318,0.06,236.7,236.69,37.28493556]
[1758071658531,0.06,236.7,236.69,4.90493556]
[1758071658736,0.06,236.7,236.69,37.28493556]
[1758071659234,0.06,236.7,236.69,37.31493556]
[1758071663932,0.06,236.7,236.69,50.91052957]
[1758071664309,0.06,236.7,236.69,52.60225492]
[1758071664825,0.06,236.7,236.69,18.53052957]
[1758071665012,0.06,236.7,236.69,30.93493556]
[1758071665217,0.06,236.7,236.69,63.31493556]
[1758071665449,0.06,236.7,236.69,37.31493556]
[1758071666045,2.08577969,236.7,236.69,32.41]
[1758071673427,0.06,236.7,236.69,33.09]
[1758071674120,0.06,236.7,236.69,37.31493556]
[1758071675538,0.06,236.7,236.69,52.93630926]
[1758071675926,0.06,236.7,236.69,53.64312595]
[1758071676124,0.06,236.7,236.69,55.33470821]
[1758071677442,0.06,236.71,236.69,55.33470821]
[1758071677443,0.06,236.71,236.7,13.87991715]
[1758071677614,0.06,236.71,236.7,46.93991715]
[1758071677817,0.06,236.71,236.7,46.25991715]
[1758071678014,0.06,236.71,236.7,46.93991715]
[1758071678244,0.06,236.71,236.7,48.63128484]
[1758071678821,0.06,236.71,236.7,52.85604191]
[1758071687053,1e-08,236.71,236.7,52.85604191]
[1758071688558,0.06,236.74,236.73,13.87991715]
[1758071688853,0.06,236.74,236.73,48.688119]
[1758071689158,0.06,236.74,236.73,49.368119]
[1758071689342,0.06,236.74,236.73,51.05927216]
[1758071689547,1e-08,236.74,236.73,51.05927216]
[1758071692563,1e-08,236.74,236.73,55.28349384]
[1758071700166,1e-08,236.74,236.73,54.86107168]
[1758071700866,1e-08,236.74,236.73,45.79529199]
[1758071701067,1e-08,236.74,236.71,4.2244846]
[1758071701360,1e-08,236.74,236.72,32.34]
[1758071701668,2.0257797,236.74,236.73,32.34]
[1758071703142,2.0257797,236.74,236.7,4.25474575]
[1758071703353,2.0257797,236.74,236.71,32.34]
[1758071703556,2.02577969,236.72,236.7,0.03]
[1758071703753,2.02577969,236.72,236.71,32.34]
[1758071705445,2.02577969,236.72,236.71,32.36]
[1758071706273,8.50774732,236.74,236.71,32.36]
[1758071706577,2.02577969,236.72,236.71,32.36]
[1758071708475,4.2241047,236.74,236.71,32.36]
[1758071708658,2.02577969,236.72,236.71,32.36]
[1758071709255,2.02577969,236.73,236.71,32.36]
[1758071709752,1.2965654,236.73,236.71,32.36]
[1758071710656,1e-08,236.74,236.72,0.68]
[1758071712070,1e-08,236.74,236.73,13.59559401]
[1758071712456,1e-08,236.74,236.73,14.27559401]
[1758071713378,1e-08,236.74,236.73,19.79638109]
[1758071713677,1e-08,236.74,236.73,52.15638109]
[1758071716081,1e-08,236.74,236.73,52.44070423]
[1758071716457,1e-08,236.74,236.73,54.13192889]
[1758071718173,1e-08,236.75,236.74,0.28432314]
[1758071718375,0.06,236.77,236.76,39.87991715]
[1758071718591,0.06,236.79,236.78,15.17648255]
[1758071718766,0.06,236.79,236.78,47.51648255]
[1758071718962,0.06,236.79,236.78,48.19648255]
[1758071719177,0.06,236.79,236.78,46.89991715]
[1758071719380,0.06,236.79,236.78,49.88727828]
[1758071719887,0.06,236.79,236.78,47.62638974]
[1758071720079,0.06,236.79,236.78,50.15892368]
[1758071720290,0.06,236.79,236.78,50.83892368]
[1758071720788,0.06,236.79,236.78,52.13548908]
[1758071721193,0.06,236.79,236.78,52.41981222]
[1758071721400,0.06,236.79,236.78,51.12324682]
[1758071721686,0.06,236.79,236.78,52.41981222]
[1758071722501,0.06,236.79,236.78,50.15892368]
[1758071722700,0.06,236.79,236.78,50.83892368]
[1758071724492,0.06,236.79,236.78,52.13548908]
[1758071724791,0.06,236.79,236.78,52.41981222]
[1758071726299,0.06,236.82,236.79,13.87991715]
[1758071726619,1e-08,236.8,236.79,46.91991715]
[1758071726892,0.3,236.89,236.83,0.28432314]
[1758071727105,0.3,236.89,236.85,13.59559401]
[1758071727264,0.3,236.89,236.87,13.59559401]
[1758071727461,0.3,236.89,236.88,32.36]
[1758071728167,0.3,236.89,236.88,50.17714078]
[1758071729395,0.3,236.89,236.88,50.85714078]
[1758071729790,0.3,236.89,236.88,18.49714078]
[1758071729987,0.3,236.89,236.88,50.85714078]
[1758071730697,0.36,236.89,236.88,50.85714078]
[1758071732600,0.36,236.89,236.88,50.17714078]
[1758071732972,0.36,236.89,236.88,50.85714078]
[1758071735197,0.36,236.89,236.88,50.17714078]
[1758071735986,0.36,236.89,236.88,50.85714078]
[1758071737113,0.36,236.89,236.88,32.34]
[1758071737887,1.6565654,236.89,236.88,32.34]
[1758071740487,0.36,236.89,236.88,32.34]
[1758071741183,0.36,236.89,236.88,46.61559401]
[1758071742382,0.36,236.89,236.88,50.83714078]
[1758071744008,26.0,237.0,236.94,20.0]
[1758071744214,1.2965654,236.95,236.94,20.0]
[1758071744518,1.2965654,236.95,236.94,52.34]
[1758071745701,1.2965654,236.95,236.94,20.0]
[1758071746013,1.2965654,236.95,236.94,52.34]
[1758071748197,1.3565654,236.95,236.94,52.34]
[1758071750118,5.57686504,236.95,236.94,52.32]
[1758071750520,1.3565654,236.95,236.94,52.32]
[1758071751115,1.3565654,236.95,236.94,20.0]
[1758071751306,1.3565654,236.95,236.94,52.32]
[1758071752714,1.3565654,236.95,236.94,20.0]
[1758071752895,1.3565654,236.95,236.94,52.32]
[1758071753503,0.06,236.95,236.94,52.32]
[1758071753715,1.3565654,236.95,236.94,52.32]
[1758071754022,0.06,236.95,236.94,52.32]
[1758071754226,1.3565654,236.95,236.94,52.32]
[1758071756001,5.57686504,236.95,236.94,52.32]
[1758071759429,1.3565654,236.95,236.94,52.32]
[1758071759611,1.3565654,236.95,236.94,53.0]
[1758071761026,1.3565654,236.95,236.94,52.32]
[1758071763721,1.3565654,236.95,236.94,53.0]
[1758071765733,5.57686504,236.95,236.91,20.3]
[1758071765910,1.2965654,236.92,236.91,20.3]
[1758071766112,1.2965654,236.92,236.91,52.62]
[1758071766420,1.2965654,236.92,236.91,32.62]
[1758071766646,27.2965654,236.92,236.91,0.3]
[1758071766822,4.13868258,236.92,236.91,0.3]
[1758071767028,27.2965654,236.92,236.91,0.3]
[1758071767222,40.68883171,236.92,236.91,0.3]
[1758071767427,44.90966574,236.92,236.91,0.33]
[1758071767625,31.51739943,236.92,236.91,0.33]
[1758071768236,34.36054387,236.92,236.91,0.33]
[1758071769919,8.36054387,236.92,236.91,0.33]
[1758071770120,5.51739943,236.92,236.91,1.01]
[1758071771330,5.51739943,236.92,236.91,0.33]
[1758071771518,4.22083403,236.92,236.91,0.33]
[1758071771923,6.2444686,236.92,236.91,0.33]
[1758071774336,6.2444686,236.92,236.91,1.01]
[1758071774639,6.2444686,236.92,236.91,0.33]
[1758071778046,26.0,236.89,236.83,20.0]
[1758071778336,2.02363457,236.84,236.83,20.0]
[1758071778515,2.02363457,236.84,236.83,53.02]
[1758071779540,2.02363457,236.84,236.83,20.68]
[1758071779541,4.22225975,236.84,236.83,20.68]
[1758071779741,2.02363457,236.84,236.83,53.02]
[1758071781242,157.7,236.89,236.83,53.02]
[1758071781243,2.02363457,236.85,236.83,53.02]
[1758071781426,2.02363457,236.85,236.84,0.68]
[1758071784034,2.02363457,236.85,236.83,52.34]
[1758071784354,2.02363457,236.84,236.83,53.02]
[1758071784552,2.02363457,236.84,236.83,20.68]
[1758071784737,2.02363457,236.84,236.83,53.02]
[1758071785144,6.24589432,236.84,236.83,53.02]
[1758071785351,6.24589432,236.84,236.83,52.34]
[1758071786538,6.24589432,236.84,236.83,53.01]
[1758071787152,6.24589432,236.84,236.83,52.34]
[1758071787342,6.24589432,236.84,236.82,0.03]
[1758071787649,14.7754137,236.88,236.83,32.34]
[1758071788148,14.7754137,236.88,236.83,33.01]
[1758071788525,14.7754137,236.88,236.84,20.0]
[1758071788736,14.7754137,236.88,236.85,32.34]
[1758071788948,6.2455378,236.86,236.85,32.34]
[1758071789749,16.80029588,236.86,236.85,32.34]
[1758071790054,18.82393045,236.86,236.85,32.34]
[1758071790558,26.0,236.83,236.82,0.03]
[1758071790768,28.02363457,236.83,236.82,32.37]
[1758071790937,32.2460726,236.83,236.82,32.37]
[1758071794455,32.2460726,236.83,236.82,0.03]
[1758071794669,32.2460726,236.83,236.79,0.03]
[1758071794670,0.28432314,236.82,236.79,0.03]
[1758071794853,28.30795771,236.8,236.79,0.03]
[1758071795051,2.30795771,236.8,236.79,0.03]
[1758071795270,3.9999693,236.8,236.79,0.03]
[1758071795643,26.0,236.76,236.73,0.03]
[1758071795957,2.02363457,236.74,236.73,0.03]
[1758071796167,2.30795771,236.74,236.73,0.03]
[1758071796362,4.00025564,236.74,236.73,0.03]
[1758071796746,8.22429889,236.74,236.73,0.03]
[1758071797087,10.24793346,236.74,236.72,0.03]
[1758071797245,26.0,236.7,236.69,0.03]
[1758071797446,28.30795771,236.7,236.69,0.03]
[1758071798353,32.53271478,236.7,236.69,0.03]
[1758071799088,13.87991715,236.69,236.66,0.03]
[1758071799291,28.30795771,236.68,236.66,0.03]
[1758071799582,36.70475707,236.7,236.58,20.2]
[1758071799583,26.0,236.64,236.58,0.87]
[1758071799764,2.30795771,236.62,236.58,0.87]
[1758071800356,6.53414315,236.62,236.58,0.87]
[1758071801284,6.53414315,236.62,236.58,0.2]
[1758071801484,8.55777772,236.62,236.58,0.2]
[1758071802005,26.0,236.59,236.58,0.2]
[1758071802163,28.02363457,236.59,236.58,0.2]
[1758071802363,32.2503559,236.59,236.58,0.2]
[1758071802574,42.81715923,236.59,236.55,0.67]
[1758071802788,131.98432314,236.58,236.56,0.67]
[1758071802956,26.0,236.55,236.54,1e-08]
[1758071803161,28.30795771,236.55,236.54,1e-08]
[1758071803560,2.30795771,236.55,236.54,1e-08]
[1758071804464,6.53539377,236.55,236.54,1e-08]
[1758071805165,32.53539377,236.55,236.54,1e-08]
[1758071805889,34.22912485,236.55,236.54,1e-08]
[1758071806770,32.53539377,236.55,236.54,1e-08]
[1758071806972,34.22912484,236.55,236.54,1e-08]
[1758071810279,32.20549027,236.55,236.54,1e-08]
[1758071810468,34.22912484,236.55,236.54,1e-08]
[1758071815104,34.22912484,236.55,236.54,0.71000001]
[1758071815105,28.30795771,236.55,236.54,0.71000001]
[1758071817989,28.30795771,236.55,236.54,1e-08]
[1758071818387,2.30795771,236.55,236.54,1e-08]
[1758071818775,36.48176051,236.55,236.54,1e-08]
[1758071820885,50.07735452,236.55,236.54,1e-08]
[1758071823693,36.25743737,236.55,236.54,0.71000001]
[1758071823993,36.39959894,236.55,236.54,0.71000001]
[1758071824221,4.06176051,236.55,236.54,0.71000001]
[1758071824501,2.36795771,236.55,236.54,0.71000001]
[1758071824986,32.59539377,236.55,236.54,1e-08]
[1758071825983,65.11539377,236.55,236.54,1e-08]
[1758071826184,32.59539377,236.55,236.54,1e-08]
[1758071826495,65.11539377,236.55,236.54,1e-08]
[1758071826799,32.59539377,236.55,236.54,1e-08]
[1758071827004,65.11539377,236.55,236.54,1e-08]
[1758071827380,78.71098778,236.55,236.54,1e-08]
[1758071828711,46.19098778,236.55,236.54,1e-08]
[1758071829119,78.71098778,236.55,236.54,1e-08]
[1758071829314,78.71098778,236.55,236.54,0.71000001]
[1758071829315,0.06,236.55,236.54,0.71000001]
[1758071829506,2.08363457,236.55,236.54,0.71000001]
[1758071829706,28.08363457,236.55,236.54,0.71000001]
[1758071830205,6.31107063,236.55,236.54,0.71000001]
[1758071830408,2.08363457,236.55,236.54,0.71000001]
[1758071830596,28.08363457,236.55,236.54,0.71000001]
[1758071831094,78.73098778,236.55,236.54,1e-08]
[1758071831820,78.00675702,236.55,236.54,1e-08]
[1758071832689,39.59559401,236.5,236.43,0.71]
[1758071832895,73.71932096,236.5,236.43,0.71]
[1758071833110,26.28432314,236.46,236.44,0.71]
[1758071833324,1.29940381,236.46,236.42,20.0]
[1758071833626,27.29940381,236.46,236.42,20.0]
[1758071833832,27.29940381,236.46,236.45,0.91]
[1758071834502,5.52844889,236.46,236.45,0.91]
[1758071835196,4.22904508,236.46,236.45,0.91]
[1758071835398,5.52844889,236.46,236.45,0.91]
[1758071837219,31.81277203,236.46,236.45,0.91]
[1758071837415,31.81277203,236.46,236.45,0.2]
[1758071837809,31.81277203,236.46,236.45,0.91]
[1758071839018,31.81277203,236.46,236.45,0.2]
[1758071840012,33.50714882,236.46,236.45,0.2]
[1758071840329,7.50714882,236.46,236.45,0.2]
[1758071841326,53.64274283,236.46,236.45,0.2]
[1758071841624,26.0,236.43,236.41,0.2]
[1758071841835,26.28432314,236.43,236.42,0.71]
[1758071842431,26.28432314,236.43,236.42,0.74]
[1758071842731,26.0,236.44,236.42,0.74]
[1758071842932,1.29940381,236.44,236.42,20.74]
[1758071843134,1.29940381,236.44,236.43,0.71]
[1758071843315,27.29940381,236.44,236.43,0.71]
[1758071843911,26.0,236.44,236.43,0.71]
[1758071844112,27.29940381,236.44,236.43,0.71]
[1758071844520,1.29940381,236.44,236.43,0.71]
[1758071847231,26.0,236.45,236.43,0.71]
[1758071847417,26.0,236.45,236.44,0.65]
[1758071847418,30.22922393,236.45,236.44,0.65]
[1758071847612,4.22922393,236.45,236.42,0.68]
[1758071847914,1.29940381,236.43,236.42,0.68]
[1758071848239,26.0,236.43,236.42,0.03]
[1758071848434,27.29940381,236.43,236.42,0.68]
[1758071849416,1.29940381,236.43,236.42,0.68]
[1758071850636,132.99940381,236.48,236.43,20.0]
[1758071850846,132.99940381,236.48,236.44,0.65]
[1758071851014,27.29940381,236.46,236.45,0.65]
[1758071851211,27.29940381,236.46,236.43,20.0]
[1758071851545,27.29940381,236.46,236.44,0.65]
[1758071852045,31.528459,236.46,236.45,0.65]
[1758071853446,27.29940381,236.46,236.45,0.65]
[1758071854234,1.29940381,236.46,236.45,0.65]